fUST/lending_fUST_20250529
["ID","MTS","AMOUNT","RATE_DAILY","PERIOD"]
[362942930,1748527855023,-987.18,0.00024383,2]
[362942931,1748527855032,-1476.07,0.00024383,2]
[362942932,1748527855043,-1823.93,0.00024383,2]
[362942933,1748527855054,-501.94,0.00024383,2]
[362942934,1748527855063,-898.83,0.00024383,2]
[362942935,1748527855073,-936.89,0.00024383,2]
[362942936,1748527855083,-430.0,0.00024383,2]
[362942937,1748527855093,-534.44,0.00024383,2]
[362942938,1748527855103,-832.68,0.00024383,2]
[362942939,1748527855112,-454.11,0.00024383,2]
[362942940,1748527855122,-1631.63,0.00024383,2]
[362942941,1748527855132,-560.74,0.00024383,2]
[362942942,1748527855144,-741.44,0.00024383,2]
[362942943,1748527855154,-609.33,0.00024383,2]
[362942944,1748527855163,-1813.3,0.00024383,2]
[362942945,1748527855173,-832.07,0.00024383,2]
[362942946,1748527855183,-691.12,0.00024383,2]
[362942947,1748527855192,-625.25,0.00024383,2]
[362942948,1748527855202,-922.9,0.00024383,2]
[362942949,1748527855211,-2030.77115715,0.000244,2]
[362942950,1748527855220,-500.0,0.00024452,2]
[362942951,1748527855230,-2030.77115713,0.00024467,2]
[362942952,1748527855239,-830.5702,0.00024472,15]
[362942953,1748527855249,-1174.33807411,0.00024486,11]
[362942954,1748527855258,-41084.9530286,0.000245,7]
[362942955,1748527855268,-500.0,0.000245,2]
[362942956,1748527855281,-83963.23,0.000245,7]
[362942957,1748527855290,-74394.59,0.000245,2]
[362942958,1748527855299,-12078.62,0.000245,2]
[362942959,1748527855310,-399.399388,0.000245,3]
[362942960,1748527855319,-2030.77115713,0.00024534,2]
[362942961,1748527855330,-639.55038236,0.00024561,2]
[362942962,1748527855339,-2030.77115713,0.00024601,2]
[362942963,1748527855349,-208.08909398,0.00024657,2]
[362942964,1748527855360,-465.54,0.00024657,2]
[362942965,1748527855370,-430.0,0.00024657,2]
[362942966,1748527855380,-430.0,0.00024657,2]
[362942967,1748527855392,-430.0,0.00024657,2]
[362942968,1748527855402,-430.0,0.00024657,2]
[362942969,1748527855411,-430.0,0.00024657,2]
[362942970,1748527855421,-430.0,0.00024657,2]
[362942971,1748527855431,-430.0,0.00024657,2]
[362942972,1748527855441,-433.55599305,0.00024657,2]
[362942973,1748527855451,-987.18,0.00024657,2]
[362942974,1748527855461,-1476.07,0.00024657,2]
[362942975,1748527855471,-397.365,0.00024657,3]
[362942976,1748527855481,-1823.93,0.00024657,2]
[362942977,1748527855491,-501.94,0.00024657,2]
[362942978,1748527855501,-898.83,0.00024657,2]
[362942979,1748527855510,-936.89,0.00024657,2]
[362942980,1748527855519,-430.0,0.00024657,2]
[362942981,1748527855530,-832.68,0.00024657,2]
[362942982,1748527855540,-454.11,0.00024657,2]
[362942983,1748527855550,-1631.63,0.00024657,2]
[362942984,1748527855560,-560.74,0.00024657,2]
[362942985,1748527855570,-741.44,0.00024657,2]
[362942986,1748527855579,-609.33,0.00024657,2]
[362942987,1748527855589,-1813.3,0.00024657,2]
[362942988,1748527855599,-832.07,0.00024657,2]
[362942989,1748527855609,-691.12,0.00024657,2]
[362942990,1748527855619,-625.25,0.00024657,2]
[362942991,1748527855629,-922.9,0.00024657,2]
[362942992,1748527855640,-160.0,0.00024657,2]
[362942993,1748527855650,-200.0,0.00024658,15]
[362942994,1748527855659,-200.56227258,0.00024658,2]
[362942995,1748527855670,-250.4286812,0.00024658,2]
[362942996,1748527855680,-984.045343,0.00024658,3]
[362942997,1748527855690,-150.325,0.00024666,2]
[362942998,1748527855699,-150.0,0.00024666,2]
[362942999,1748527855708,-150.0,0.00024666,2]
[362943000,1748527855719,-961.0,0.00024666,2]
[362943001,1748527855729,-2030.77115713,0.00024668,2]
[362943002,1748527855738,-215.0738,0.00024676,2]
[362943003,1748527855748,-2106.60002774,0.0002468,7]
[362943004,1748527855758,-1174.33807411,0.00024693,11]
[362943005,1748527855767,-1838.31,0.000247,7]
[362943006,1748527855777,-2030.77115713,0.00024736,2]
[362943007,1748527855787,-639.55038236,0.00024755,2]
[362943008,1748527855797,-2566.89,0.0002478,5]
[362943009,1748527855807,-283852.020344,0.000248,2]
[362943010,1748527855816,-2030.77115713,0.00024803,2]
[362943011,1748527855826,-2030.77115713,0.0002487,2]
[362943012,1748527855835,-227459.1218856,0.00024888,2]
[362943013,1748527855998,-430.0,0.00020821,2]
[362943014,1748527856008,-1320.72605576,0.00024888,2]
[362943015,1748527856020,-2750.0,0.00024888,2]
[362943016,1748527856466,-5000.0,0.00018979,2]
[362943017,1748527856476,-1497.86003335,0.00019171,2]
[362943018,1748527856486,-849.36,0.00019442,3]
[362943019,1748527856495,-484.74,0.00019452,2]
[362943020,1748527856505,-484.74,0.00019726,2]
[362943021,1748527856514,-484.74,0.0002,2]
[362943022,1748527856524,-484.74,0.00020273,2]
[362943023,1748527856533,-484.74,0.00020547,2]
[362943024,1748527856543,-1698.72,0.00020812,3]
[362943025,1748527856552,-484.74,0.00020821,2]
[362943026,1748527856562,-303.53,0.00021095,2]
[362943027,1748527856572,-484.74,0.00021095,2]
[362943028,1748527856581,-484.74,0.00021369,2]
[362943029,1748527856591,-484.74,0.00021643,2]
[362943030,1748527856600,-484.74,0.00021917,2]
[362943031,1748527856610,-484.74,0.00022191,2]
[362943032,1748527856620,-484.74,0.00022465,2]
[362943033,1748527856630,-484.74,0.00022739,2]
[362943034,1748527856641,-484.74,0.00023013,2]
[362943035,1748527856651,-484.74,0.00023287,2]
[362943036,1748527856661,-484.74,0.00023561,2]
[362943037,1748527856670,-484.74,0.00023835,2]
[362943038,1748527856680,-484.74,0.00024109,2]
[362943039,1748527856690,-484.74,0.00024383,2]
[362943040,1748527856699,-484.74,0.00024657,2]
[362943041,1748527856709,-34645.72996663,0.00024888,2]
[362943042,1748527856721,-85817.75894018,0.00024888,2]
[362943043,1748527856731,-200.75573277,0.000249,2]
[362943044,1748527856741,-213.66377416,0.000249,2]
[362943045,1748527856751,-160.0,0.000249,3]
[362943046,1748527856761,-152.48,0.000249,31]
[362943047,1748527856771,-152.48,0.000249,31]
[362943048,1748527856781,-152.48,0.000249,31]
[362943049,1748527856791,-152.48,0.000249,31]
[362943050,1748527856801,-152.48,0.000249,31]
[362943051,1748527856811,-152.48,0.000249,31]
[362943052,1748527856820,-152.48,0.000249,31]
[362943053,1748527856831,-152.48,0.000249,31]
[362943054,1748527856841,-152.48,0.000249,31]
[362943055,1748527856851,-152.48,0.000249,31]
[362943056,1748527856861,-152.48,0.000249,31]
[362943057,1748527856871,-152.48,0.000249,31]
[362943058,1748527856882,-152.48,0.000249,31]
[362943059,1748527856894,-152.48,0.000249,31]
[362943060,1748527856904,-2322.10627289,0.000249,2]
[362943061,1748527856916,-1818.19069985,0.000249,2]
[362943062,1748527856928,-707338.14712926,0.000249,2]
[362943063,1748527856938,-842.5625,0.000249,3]
[362943064,1748527856948,-1174.33807411,0.000249,12]
[362943065,1748527856957,-423.31762986,0.000249,3]
[362943066,1748527856967,-12660.97845086,0.000249,3]
[362943067,1748527856976,-465.54,0.00024931,2]
[362943068,1748527856985,-987.18,0.00024931,2]
[362943069,1748527856995,-1476.07,0.00024931,2]
[362943070,1748527857005,-1823.93,0.00024931,2]
[362943071,1748527857015,-501.94,0.00024931,2]
[362943072,1748527857024,-898.83,0.00024931,2]
[362943073,1748527857034,-936.89,0.00024931,2]
[362943074,1748527857043,-526.61614794,0.00024931,2]
[362943075,1748527857053,-832.68,0.00024931,2]
[362943076,1748527857062,-454.11,0.00024931,2]
[362943077,1748527857072,-1631.63,0.00024931,2]
[362943078,1748527857081,-560.74,0.00024931,2]
[362943079,1748527857092,-741.44,0.00024931,2]
[362943080,1748527857101,-609.33,0.00024931,2]
[362943081,1748527857110,-1813.3,0.00024931,2]
[362943082,1748527857118,-832.07,0.00024931,2]
[362943083,1748527857127,-691.12,0.00024931,2]
[362943084,1748527857136,-625.25,0.00024931,2]
[362943085,1748527857150,-922.9,0.00024931,2]
[362943086,1748527857160,-484.74,0.00024931,2]
[362943087,1748527857168,-2030.77115713,0.00024937,2]
[362943088,1748527857177,-37484.99981003,0.00024981,2]
[362943089,1748527857186,-160.0,0.00024999,2]
[362943090,1748527857196,-126455.43581081,0.00025,2]
[362943091,1748527857558,-29947.82609956,0.00025,2]
[362943092,1748527857567,-4429.74589667,0.00025,3]
[362943093,1748527857577,-801663.89773885,0.00025,30]
[362943094,1748527857587,-29910.1613234,0.00025,30]
[362943095,1748527857596,-10000.0,0.00025,30]
[362943096,1748527857605,-25132.81974167,0.00025,30]
[362943097,1748527857617,-567.87898395,0.00025,30]
[362943098,1748527857636,-108290.82143983,0.00025,30]
[362943099,1748527857648,-2083.025993,0.00025,2]
[362943100,1748527857657,-1388074.3413787,0.00025,30]
[362943101,1748527857669,-234535.65425944,0.00025,30]
[362943102,1748527857680,-1350.21165407,0.00025,30]
[362943103,1748527857691,-596.36714353,0.00025,30]
[362943104,1748527857702,-2219.8154656,0.00025,30]
[362943105,1748527857713,-1932.37336879,0.00025,30]
[362943106,1748527857724,-73530.01952476,0.00025,30]
[362943107,1748527857735,-2596.88831198,0.00025,30]
[362943108,1748527857917,-418.75557889,0.00019178,2]
[362943109,1748527858045,-11.24442111,0.00019178,2]
[362943110,1748527858054,-430.0,0.00019452,2]
[362943111,1748527858063,-430.0,0.00019726,2]
[362943112,1748527858071,-430.0,0.0002,2]
[362943113,1748527858080,-430.0,0.00020273,2]
[362943114,1748527858090,-526356.63818784,0.00025,30]
[362943115,1748527858099,-500.0,0.00025,14]
[362943116,1748527858109,-796530.34195379,0.00025,30]
[362943117,1748527858201,-285.82393228,0.0002042,2]
[362943118,1748527858211,-430.0,0.00020547,2]
[362943119,1748527858220,-151.37663522,0.00020821,2]
[362943120,1748527858229,-319.77519118,0.00024518,2]
[362943121,1748527858239,-319.77519118,0.00024903,2]
[362943122,1748527858248,-228782.44880014,0.00025,30]
[362943123,1748527974657,212.204545,0.00013699,2]
[362943135,1748528625181,-155.7532853,0.00014472,2]
[362943175,1748529007838,222.636587,0.00013699,2]
[362943234,1748529031879,-5000.0,0.00014468,2]
[362943236,1748529031888,-300.0,0.00014613,2]
[362943238,1748529031898,-300.0,0.00014613,2]
[362943240,1748529031907,-300.0,0.00014613,2]
[362943242,1748529031917,-1200.0,0.00014613,2]
[362943244,1748529031926,-13483.7757379,0.00014614,2]
[362943246,1748529031935,-1393.94729629,0.00014696,2]
[362943313,1748529038554,-1634.81837571,0.00014696,2]
[362943315,1748529038563,-386.06883995,0.00015,2]
[362943318,1748529038574,-1798.70342125,0.00015,2]
[362943320,1748529038584,-150.0,0.00015017,2]
[362943322,1748529038594,-1792.3407999,0.00015367,2]
[362943324,1748529038604,-424.295427,0.00015368,2]
[362943326,1748529038613,-150.0,0.00015732,2]
[362943327,1748529038622,-171.0,0.00015999,2]
[362943329,1748529038631,-420.0,0.00015999,2]
[362943331,1748529038640,-3098.57932811,0.00016204,2]
[362943333,1748529038649,-55.566255,0.0001624,2]
[362943336,1748529038662,-395.08962161,0.0001624,2]
[362943338,1748529038674,-422.83038089,0.0001624,2]
[362943340,1748529038686,-77.16961911,0.0001624,2]
[362943342,1748529038695,-414.59588258,0.0001624,2]
[362943344,1748529038705,-467.48847649,0.0001624,2]
[362943346,1748529038714,-421.59110667,0.0001624,2]
[362943349,1748529038723,-500.0,0.0001624,2]
[362943351,1748529038732,-500.0,0.0001624,2]
[362943353,1748529038740,-500.0,0.0001624,2]
[362943354,1748529038749,-500.0,0.0001624,2]
[362943356,1748529038759,-500.0,0.0001624,2]
[362943357,1748529038769,-374.35675895,0.0001624,2]
[362943359,1748529038778,-384.07555864,0.0001624,2]
[362943360,1748529038787,-500.0,0.0001624,2]
[362943363,1748529038803,-500.0,0.0001624,2]
[362943364,1748529038811,-500.0,0.0001624,2]
[362943366,1748529038820,-500.0,0.0001624,2]
[362943368,1748529038829,-500.0,0.0001624,2]
[362943370,1748529038838,-500.0,0.0001624,2]
[362943371,1748529038847,-500.0,0.0001624,2]
[362943373,1748529038856,-500.0,0.0001624,2]
[362943374,1748529038865,-500.0,0.0001624,2]
[362943376,1748529038874,-500.0,0.0001624,2]
[362943378,1748529038883,-500.0,0.0001624,2]
[362943380,1748529038894,-500.0,0.0001624,2]
[362943382,1748529038903,-500.0,0.0001624,2]
[362943383,1748529038911,-500.0,0.0001624,2]
[362943385,1748529038920,-500.0,0.0001624,2]
[362943386,1748529038929,-446.12128761,0.0001624,2]
[362943387,1748529038938,-1331.7145305,0.0001624,2]
[362943389,1748529038947,-500.0,0.0001624,2]
[362943390,1748529038956,-1331.7145305,0.0001624,2]
[362943391,1748529038964,-496.24698624,0.0001624,2]
[362943393,1748529038974,-1331.7145305,0.0001624,2]
[362943394,1748529038983,-1331.7145305,0.0001624,2]
[362943395,1748529038993,-500.0,0.0001624,2]
[362943396,1748529039002,-500.0,0.0001624,2]
[362943397,1748529039011,-1331.7145305,0.0001624,2]
[362943398,1748529039020,-500.0,0.0001624,2]
[362943399,1748529039030,-1331.7145305,0.0001624,2]
[362943400,1748529039039,-1331.7145305,0.0001624,2]
[362943401,1748529039056,-1331.7145305,0.0001624,2]
[362943402,1748529039066,-500.0,0.0001624,2]
[362943403,1748529039075,-500.0,0.0001624,2]
[362943404,1748529039084,-1331.7145305,0.0001624,2]
[362943405,1748529039094,-500.0,0.0001624,2]
[362943406,1748529039103,-500.0,0.0001624,2]
[362943407,1748529039112,-1331.7145305,0.0001624,2]
[362943408,1748529039121,-1331.7145305,0.0001624,2]
[362943409,1748529039130,-1331.7145305,0.0001624,2]
[362943410,1748529039140,-1331.7145305,0.0001624,2]
[362943411,1748529039149,-50000.0,0.00016241,2]
[362943412,1748529039158,-300.0,0.00016241,2]
[362943413,1748529039167,-151.0,0.00016242,2]
[362943414,1748529039176,-151.0,0.00016242,2]
[362943415,1748529039185,-515.52758517,0.00016243,2]
[362943416,1748529039194,-24900.0,0.00016247,2]
[362943417,1748529039203,-4767.7930915,0.00016247,2]
[362943418,1748529039212,-151.0,0.00016269,2]
[362943419,1748529039221,-213.2334,0.00016297,2]
[362943420,1748529039230,-150.0,0.00016447,2]
[362943421,1748529039239,-170.0733622,0.0001654,2]
[362943423,1748529039247,-150.0,0.00017162,2]
[362943425,1748529039256,-587.0,0.00017517,2]
[362943426,1748529039265,-205.57842921,0.000176,2]
[362943427,1748529039274,-150.0,0.00017877,2]
[362943428,1748529039283,-1246.06244584,0.000179,2]
[362943429,1748529039296,-160.0,0.00017927,2]
[362943430,1748529039306,-106088.12646566,0.00018,2]
[362943431,1748529039314,-609.07129601,0.00018,2]
[362943432,1748529039324,-4772.51578456,0.00018,2]
[362943433,1748529039332,-165.73,0.00018592,2]
[362943434,1748529039341,-1218.18207361,0.000189,2]
[362943435,1748529039350,-424.68,0.00019166,3]
[362943436,1748529039359,-212.34,0.00019166,3]
[362943438,1748529039368,-637.07,0.00019166,3]
[362943439,1748529039377,-430.0,0.00019178,2]
[362943440,1748529039386,-430.0,0.00019178,2]
[362943441,1748529039395,-430.0,0.00019178,2]
[362943442,1748529039404,-430.0,0.00019178,2]
[362943443,1748529039413,-430.0,0.00019178,2]
[362943444,1748529039423,-389.66,0.00019178,2]
[362943445,1748529039432,-255.91969351,0.00019178,2]
[362943446,1748529039441,-430.0,0.00019178,2]
[362943447,1748529039450,-430.0,0.00019178,2]
[362943448,1748529039459,-430.0,0.00019178,2]
[362943449,1748529039468,-225.97803494,0.00019178,2]
[362943450,1748529039477,-430.0,0.00019178,2]
[362943452,1748529039488,-402.90912656,0.00019178,2]
[362943453,1748529039496,-168.29192913,0.00019178,2]
[362943454,1748529039505,-430.0,0.00019178,2]
[362943455,1748529039514,-331.62190277,0.00019178,2]
[362943456,1748529039524,-164.73649913,0.00019178,2]
[362943457,1748529039536,-430.0,0.00019178,2]
[362943458,1748529039552,-430.0,0.00019178,2]
[362943459,1748529039561,-441.95115847,0.00019178,2]
[362943460,1748529039571,-430.0,0.00019178,2]
[362943461,1748529039579,-430.0,0.00019178,2]
[362943462,1748529039588,-430.0,0.00019178,2]
[362943463,1748529039597,-430.0,0.00019178,2]
[362943464,1748529039606,-430.0,0.00019178,2]
[362943465,1748529039615,-430.0,0.00019178,2]
[362943466,1748529039625,-430.0,0.00019178,2]
[362943467,1748529039634,-413.57330831,0.00019178,2]
[362943469,1748529039643,-430.0,0.00019178,2]
[362943470,1748529039653,-1578.61,0.00019178,2]
[362943472,1748529039662,-430.0,0.00019178,2]
[362943474,1748529039673,-430.0,0.00019178,2]
[362943475,1748529039683,-430.0,0.00019178,2]
[362943477,1748529039692,-430.0,0.00019178,2]
[362943478,1748529039702,-432.80904633,0.00019178,2]
[362943480,1748529039713,-316.58126201,0.00019178,2]
[362943482,1748529039723,-430.0,0.00019178,2]
[362943484,1748529039734,-430.0,0.00019178,2]
[362943485,1748529039745,-430.0,0.00019178,2]
[362943486,1748529039762,-430.0,0.00019178,2]
[362943487,1748529039772,-430.0,0.00019178,2]
[362943488,1748529039784,-430.0,0.00019178,2]
[362943489,1748529039799,-550.71906561,0.00019178,2]
[362943490,1748529039807,-430.0,0.00019178,2]
[362943491,1748529039816,-430.0,0.00019178,2]
[362943492,1748529039825,-430.0,0.00019178,2]
[362943493,1748529039834,-430.0,0.00019178,2]
[362943494,1748529039843,-430.0,0.00019178,2]
[362943495,1748529039852,-430.0,0.00019178,2]
[362943496,1748529039861,-430.0,0.00019178,2]
[362943497,1748529039870,-430.0,0.00019178,2]
[362943498,1748529039879,-361.0699374,0.00019178,2]
[362943499,1748529039888,-430.0,0.00019178,2]
[362943500,1748529039898,-430.0,0.00019178,2]
[362943501,1748529039907,-430.0,0.00019178,2]
[362943502,1748529039916,-450.0,0.00019178,2]
[362943503,1748529039925,-430.0,0.00019178,2]
[362943504,1748529039934,-430.0,0.00019178,2]
[362943505,1748529039943,-430.0,0.00019178,2]
[362943506,1748529039953,-306.35003313,0.00019178,2]
[362943507,1748529039963,-430.0,0.00019178,2]
[362943508,1748529039972,-500.0,0.00019178,2]
[362943509,1748529039981,-500.0,0.00019178,2]
[362943510,1748529039990,-481.17894143,0.00019178,2]
[362943511,1748529039999,-500.0,0.00019178,2]
[362943512,1748529040009,-500.0,0.00019178,2]
[362943513,1748529040017,-179.856019,0.00019178,2]
[362943514,1748529040026,-442.0,0.00019179,2]
[362943515,1748529040035,-160.0,0.00019297,2]
[362943517,1748529040047,-193.35,0.00019307,2]
[362943518,1748529040056,-726.19565465,0.00019312,2]
[362943520,1748529040065,-430.0,0.00019452,2]
[362943522,1748529040074,-430.0,0.00019452,2]
[362943523,1748529040082,-430.0,0.00019452,2]
[362943525,1748529040091,-430.0,0.00019452,2]
[362943526,1748529040100,-432.0471224,0.00019452,2]
[362943527,1748529040109,-501.28,0.00019452,2]
[362943528,1748529040118,-430.0,0.00019452,2]
[362943529,1748529040127,-430.0,0.00019452,2]
[362943530,1748529040136,-430.0,0.00019452,2]
[362943531,1748529040145,-430.0,0.00019452,2]
[362943532,1748529040155,-430.0,0.00019452,2]
[362943533,1748529040164,-430.0,0.00019452,2]
[362943534,1748529040173,-1578.61,0.00019452,2]
[362943535,1748529040182,-430.0,0.00019452,2]
[362943536,1748529040190,-430.0,0.00019452,2]
[362943537,1748529040200,-430.0,0.00019452,2]
[362943538,1748529040209,-430.0,0.00019452,2]
[362943539,1748529040218,-430.0,0.00019452,2]
[362943541,1748529040227,-430.0,0.00019452,2]
[362943543,1748529040236,-430.0,0.00019452,2]
[362943544,1748529040244,-430.0,0.00019452,2]
[362943546,1748529040253,-430.0,0.00019452,2]
[362943548,1748529040262,-430.0,0.00019452,2]
[362943550,1748529040271,-430.0,0.00019452,2]
[362943552,1748529040280,-430.0,0.00019452,2]
[362943554,1748529040289,-430.0,0.00019452,2]
[362943556,1748529040303,-539.60404836,0.00019452,2]
[362943557,1748529040312,-290.03566025,0.00019452,2]
[362943559,1748529040321,-430.0,0.00019452,2]
[362943561,1748529040330,-430.0,0.00019452,2]
[362943562,1748529040339,-430.0,0.00019452,2]
[362943563,1748529040348,-59115.61585109,0.000195,2]
[362943564,1748529040357,-1246.06244584,0.00019592,2]
[362943565,1748529040366,-200.45230617,0.00019603,2]
[362943566,1748529040384,-501.38712862,0.00019708,2]
[362943567,1748529040395,-206.037986,0.00019726,2]
[362943568,1748529040405,-430.0,0.00019726,2]
[362943569,1748529040414,-430.0,0.00019726,2]
[362943570,1748529040424,-430.0,0.00019726,2]
[362943571,1748529040433,-430.0,0.00019726,2]
[362943572,1748529040442,-430.0,0.00019726,2]
[362943573,1748529040451,-430.0,0.00019726,2]
[362943574,1748529040460,-430.0,0.00019726,2]
[362943575,1748529040469,-478.39560952,0.00019726,2]
[362943576,1748529040478,-305.82518055,0.00019726,2]
[362943577,1748529040488,-1578.61,0.00019726,2]
[362943578,1748529040498,-358.78,0.00019726,2]
[362943579,1748529040507,-430.0,0.00019726,2]
[362943580,1748529040517,-430.0,0.00019726,2]
[362943581,1748529040526,-430.0,0.00019726,2]
[362943582,1748529040535,-430.0,0.00019726,2]
[362943583,1748529040548,-430.0,0.00019726,2]
[362943584,1748529040557,-430.0,0.00019726,2]
[362943585,1748529040566,-261.62,0.00019726,2]
[362943586,1748529040575,-430.0,0.00019726,2]
[362943587,1748529040584,-430.0,0.00019726,2]
[362943588,1748529040594,-202.88461555,0.00019726,2]
[362943589,1748529040603,-390.63,0.00019726,2]
[362943590,1748529040612,-430.0,0.00019726,2]
[362943591,1748529040622,-522.30198271,0.00019726,2]
[362943592,1748529040631,-430.0,0.00019726,2]
[362943593,1748529040641,-430.0,0.0002,2]
[362943594,1748529040650,-433.41417867,0.0002,2]
[362943595,1748529040659,-430.0,0.0002,2]
[362943596,1748529040669,-430.0,0.0002,2]
[362943597,1748529040682,-430.0,0.0002,2]
[362943598,1748529040691,-430.0,0.0002,2]
[362943599,1748529040700,-430.0,0.0002,2]
[362943600,1748529040710,-1578.61,0.0002,2]
[362943601,1748529040721,-430.0,0.0002,2]
[362943602,1748529040730,-374.31,0.0002,2]
[362943603,1748529040739,-507.76977422,0.0002,2]
[362943604,1748529040749,-430.0,0.0002,2]
[362943605,1748529040760,-430.0,0.0002,2]
[362943606,1748529040769,-375.58,0.0002,2]
[362943607,1748529040778,-430.0,0.0002,2]
[362943608,1748529040787,-193.0565606,0.0002,2]
[362943609,1748529040800,-430.0,0.0002,2]
[362943610,1748529040809,-555.86590207,0.0002,2]
[362943611,1748529040819,-220.97,0.00020022,2]
[362943612,1748529040829,-842.5625,0.00020128,2]
[362943613,1748529040838,-212.70147903,0.00020128,2]
[362943614,1748529040848,-160.0,0.00020128,2]
[362943615,1748529040857,-160.0,0.00020129,2]
[362943616,1748529040867,-160.0,0.00020129,2]
[362943617,1748529040876,-160.0,0.00020129,2]
[362943618,1748529040885,-229.26895353,0.00020129,2]
[362943619,1748529040894,-423.31762986,0.00020129,2]
[362943620,1748529040904,-160.0,0.00020129,2]
[362943621,1748529040914,-160.0,0.00020129,2]
[362943622,1748529040923,-222.636587,0.00020187,2]
[362943623,1748529040932,-510.0,0.00020273,2]
[362943624,1748529040941,-430.0,0.00020273,2]
[362943625,1748529040951,-430.0,0.00020273,2]
[362943626,1748529040960,-254.48,0.00020273,2]
[362943627,1748529040969,-430.0,0.00020273,2]
[362943628,1748529040978,-437.62,0.00020273,2]
[362943629,1748529040987,-1578.61,0.00020273,2]
[362943630,1748529040996,-430.0,0.00020273,2]
[362943631,1748529041005,-153.92,0.00020273,2]
[362943632,1748529041014,-430.0,0.00020273,2]
[362943633,1748529041023,-430.0,0.00020273,2]
[362943634,1748529041032,-430.0,0.00020273,2]
[362943635,1748529041041,-849.36,0.00020536,3]
[362943636,1748529041053,-424.68,0.00020536,3]
[362943637,1748529041063,-430.0,0.00020547,2]
[362943638,1748529041073,-430.0,0.00020547,2]
[362943639,1748529041082,-1578.61,0.00020547,2]
[362943640,1748529041092,-430.0,0.00020547,2]
[362943641,1748529041101,-430.0,0.00020547,2]
[362943642,1748529041111,-430.0,0.00020547,2]
[362943643,1748529041121,-430.0,0.00020547,2]
[362943644,1748529041130,-283.332,0.00020568,2]
[362943645,1748529041140,-160.0,0.00020667,2]
[362943646,1748529041149,-189.09866975,0.00020737,2]
[362943647,1748529041158,-430.0,0.00020821,2]
[362943648,1748529041167,-1578.61,0.00020821,2]
[362943649,1748529041176,-430.0,0.00020821,2]
[362943650,1748529041185,-321.56,0.00020821,2]
[362943651,1748529041195,-430.0,0.00020821,2]
[362943652,1748529041204,-430.0,0.00020821,2]
[362943653,1748529041213,-372.3675366,0.00021095,2]
[362943654,1748529041222,-1578.61,0.00021095,2]
[362943655,1748529041231,-430.0,0.00021095,2]
[362943656,1748529041239,-430.0,0.00021095,2]
[362943657,1748529041248,-253.36202988,0.00021095,2]
[362943658,1748529041258,-500.0,0.00021164,2]
[362943659,1748529041267,-1246.06244584,0.00021283,2]
[362943660,1748529041276,-1578.61,0.00021369,2]
[362943661,1748529041285,-208.0,0.00021369,2]
[362943662,1748529041297,-186.74782972,0.00021369,2]
[362943663,1748529041306,-1578.61,0.00021643,2]
[362943664,1748529041315,-1578.61,0.00021917,2]
[362943665,1748529041324,-500.0,0.00021918,2]
[362943666,1748529041333,-500.0,0.00021918,2]
[362943667,1748529041343,-500.0,0.00021918,2]
[362943668,1748529041352,-500.0,0.00021918,2]
[362943669,1748529041361,-500.0,0.00021918,2]
[362943670,1748529041370,-500.0,0.00021918,2]